bitfinex/quotes_ETHUSD_20250331
["timestamp","ask_amount","ask_price","bid_price","bid_amount"]
[1743435122433,5.46380183,1841.5,1841.4,5.978]
[1743435122634,0.03333183,1841.8,1841.4,11.40852]
[1743435122821,0.03333183,1841.8,1841.4,5.978]
[1743435123012,5.43,1841.7,1841.4,5.978]
[1743435123219,5.43,1841.7,1841.4,7.196103]
[1743435123415,5.42989,1841.7,1841.4,7.196103]
[1743435123606,8.42888,1842.0,1841.4,7.196103]
[1743435123607,5.42948,1841.8,1841.4,7.196103]
[1743435124139,5.42992,1841.7,1841.4,7.196103]
[1743435124933,5.43035,1841.5,1841.4,5.978]
[1743435125141,5.43035,1841.5,1841.1,0.8178]
[1743435125142,5.43096,1841.3,1841.1,0.8178]
[1743435125454,5.43073,1841.4,1841.2,5.978]
[1743435125662,5.42985,1841.7,1841.3,5.43093]
[1743435125809,5.42985,1841.7,1841.3,5.43084]
[1743435126012,5.42985,1841.7,1841.5,0.8202]
[1743435126237,10.8599,1841.7,1841.5,0.8202]
[1743435126434,5.42985,1841.7,1841.5,0.8202]
[1743435126739,5.4284,1842.2,1841.7,11.68445]
[1743435126945,10.85694,1842.2,1841.8,5.978]
[1743435127114,10.85696,1842.2,1841.9,0.5978]
[1743435127315,5.42867,1842.1,1841.8,5.978]
[1743435127514,10.89012183,1842.2,1841.8,5.978]
[1743435127711,5.42872,1842.1,1841.8,5.978]
[1743435128517,10.85846,1841.9,1841.7,5.978]
[1743435128708,9.27463183,1841.8,1841.7,5.978]
[1743435128909,5.43145,1841.2,1841.0,31.313]
[1743435129142,5.43153,1841.1,1841.0,31.313]
[1743435129339,10.89546183,1841.3,1841.0,37.291]
[1743435129541,0.03333183,1841.2,1841.0,37.291]
[1743435129709,3.0,1841.3,1841.0,37.291]
[1743435129915,8.43115,1841.3,1841.0,37.291]
[1743435130435,5.43125,1841.2,1841.0,37.291]
[1743435130959,5.43153,1841.1,1841.0,37.291]
[1743435131149,5.43125,1841.2,1841.0,37.291]
[1743435131653,5.46486183,1841.1,1841.0,37.291]
[1743435132526,3.0,1841.1,1841.0,37.291]
[1743435132737,6.24245,1841.4,1841.0,37.291]
[1743435132915,5.43111,1841.3,1841.0,37.291]
[1743435133110,0.543111,1841.3,1841.0,37.291]
[1743435133357,5.43138,1841.2,1841.0,37.291]
[1743435134074,0.03333183,1841.3,1841.0,37.291]
[1743435134236,8.43095,1841.3,1841.0,37.291]
[1743435134432,3.0,1841.4,1841.0,42.72255]
[1743435134746,5.42921,1841.9,1841.3,5.43075]
[1743435134945,5.42906,1842.0,1841.5,6.21022]
[1743435135143,0.8285,1842.3,1841.6,6.58229656]
[1743435135317,5.42903,1842.0,1841.7,0.55]
[1743435135644,5.42928,1841.9,1841.6,5.978]
[1743435135847,5.42959,1841.8,1841.6,5.978]
[1743435136016,10.89130183,1842.0,1841.6,6.65379]
[1743435136347,5.46279183,1841.9,1841.6,6.65379]
[1743435136548,5.42948,1841.8,1841.6,6.65379]
[1743435137045,5.42956,1841.8,1841.6,6.65379]
[1743435137232,5.42993,1841.7,1841.5,0.7799]
[1743435137438,5.42993,1841.7,1841.2,5.43105]
[1743435137439,5.42993,1841.7,1841.6,5.977]
[1743435137650,5.42917,1841.9,1841.6,5.977]
[1743435137854,3.0,1841.9,1841.6,5.977]
[1743435138046,3.0,1841.9,1841.6,7.117725]
[1743435138218,3.0,1841.9,1841.6,12.547775]
[1743435138415,5.42862,1842.1,1841.7,6.24885]
[1743435138640,5.42888,1842.0,1841.7,0.8191]
[1743435139548,8.42862,1842.1,1841.7,6.24877]
[1743435139855,8.42862,1842.1,1841.8,0.624877]
[1743435140056,5.42888,1842.0,1841.8,0.624877]
[1743435140355,5.42888,1842.0,1841.7,0.8191]
[1743435140518,13.8574,1842.1,1841.7,0.8191]
[1743435140716,8.42862,1842.1,1841.7,0.8191]
[1743435140916,0.03333183,1842.3,1841.8,0.55]
[1743435141126,0.03333183,1842.8,1842.0,0.55]
[1743435141351,0.05,1842.9,1842.6,0.8078]
[1743435141657,0.05,1842.9,1842.7,6.03026431]
[1743435141844,0.05,1842.9,1842.7,5.976]
[1743435142046,3.05,1842.9,1842.7,5.976]
[1743435142246,0.05,1842.9,1842.7,5.976]
[1743435142627,3.05,1842.9,1842.7,5.976]
[1743435142823,0.05,1842.9,1842.7,11.98599475]
[1743435143029,0.05,1842.9,1842.7,6.55921475]
[1743435143230,0.05,1842.9,1842.8,5.97652]
[1743435144161,0.05,1842.9,1842.7,6.55921475]
[1743435144363,0.05,1842.9,1842.7,5.976]
[1743435145429,5.42652,1842.8,1842.7,5.976]
[1743435145655,5.42652,1842.8,1842.7,5.974]
[1743435146383,8.42652,1842.8,1842.7,5.974]
[1743435146562,8.4277,1842.4,1842.3,5.974]
[1743435146730,8.46103183,1842.4,1842.3,5.974]
[1743435147165,9.84988601,1842.4,1842.3,5.974]
[1743435147773,9.84988601,1842.4,1841.9,31.316]
[1743435147774,3.0,1842.4,1842.0,11.40168]
[1743435147984,3.0,1842.8,1842.2,0.55]
[1743435148184,5.42663,1842.8,1842.3,5.42781]
[1743435148354,10.85337,1842.8,1842.4,0.542781]
[1743435148551,10.85337,1842.8,1842.5,5.973]
[1743435148873,0.03333183,1842.8,1842.5,5.973]
[1743435149042,5.42727,1842.6,1842.1,21.84165]
[1743435149238,5.42727,1842.6,1842.2,5.973]
[1743435149454,5.42684,1842.7,1842.3,5.42798]
[1743435149873,5.42684,1842.7,1842.3,0.55]
[1743435150185,5.46056183,1842.6,1842.2,8.754465]
[1743435150355,5.4275,1842.5,1842.2,8.754465]
[1743435150555,5.42723,1842.6,1842.2,8.754465]
[1743435150758,5.42742,1842.5,1842.2,2.781465]
[1743435150957,5.42742,1842.5,1842.3,5.972]
[1743435151275,3.0,1842.7,1842.3,6.8473465]
[1743435151468,3.0,1842.7,1842.3,12.2751565]
[1743435151658,8.42691,1842.7,1842.3,12.2751565]
[1743435151857,3.0,1842.7,1842.3,17.7029765]
[1743435152184,3.0,1842.7,1842.3,12.2751565]
[1743435152371,3.0,1842.7,1842.4,1.22751565]
[1743435152546,8.42685,1842.7,1842.3,12.2751565]
[1743435153364,3.0,1842.7,1842.3,17.7029865]
[1743435153681,8.42686,1842.7,1842.3,12.2751565]
[1743435153980,8.42691,1842.7,1842.3,12.2753365]
[1743435154274,8.42691,1842.7,1842.3,6.8473465]
[1743435154580,5.42656,1842.8,1842.4,0.68473465]
[1743435154875,5.42656,1842.8,1842.4,6.11231465]
[1743435155076,8.47632,1842.9,1842.5,6.20328]
[1743435155277,0.05,1842.9,1842.5,6.20319]
[1743435155448,0.05,1842.9,1842.6,6.047399]
[1743435155643,0.05,1842.9,1842.6,0.620319]
[1743435155849,5.47623,1842.9,1842.6,0.620319]
[1743435156287,10.90267,1842.9,1842.6,0.620319]
[1743435156461,5.47623,1842.9,1842.6,0.620319]
[1743435156786,0.05,1842.9,1842.6,5.427]
[1743435156980,0.05,1842.9,1842.7,5.48086123]
[1743435157180,0.05,1842.9,1842.8,7.3422]
[1743435157385,0.05,1842.9,1842.8,6.7922]
[1743435159781,0.05,1842.9,1842.8,5.971]
[1743435160679,5.47623,1842.9,1842.8,5.971]
[1743435160880,5.4267,1842.8,1842.5,42.3194]
[1743435161053,10.85351,1842.8,1842.6,5.97]
[1743435161258,5.4267,1842.8,1842.6,5.97]
[1743435162359,5.4267,1842.8,1842.7,5.969]
[1743435162559,5.47625,1842.9,1842.7,5.969]
[1743435162959,0.05,1842.9,1842.7,12.16512]
[1743435163194,0.05,1842.9,1842.7,12.76202]
[1743435163354,0.05,1842.9,1842.8,6.03077665]
[1743435163664,0.05,1842.9,1842.8,0.55]
[1743435163869,0.05,1842.9,1842.8,1.88122]
[1743435164389,0.05,1842.9,1842.8,7.30774]
[1743435165103,0.05,1842.9,1842.8,1.33122]
[1743435165286,0.05,1842.9,1842.7,7.3354]
[1743435165486,0.05,1842.9,1842.7,12.81643986]
[1743435165698,0.05,1842.9,1842.7,12.76218]
[1743435165900,0.05,1842.9,1842.7,12.76211]
[1743435166102,0.05,1842.9,1842.7,7.3354]
[1743435166575,5.47626,1842.9,1842.7,7.3354]
[1743435166901,5.42684,1842.7,1842.5,42.2604]
[1743435167095,5.42684,1842.7,1842.6,5.968]
[1743435167472,6.26926,1842.9,1842.6,5.968]
[1743435167667,0.05,1842.9,1842.7,5.4268]
[1743435167899,0.05,1842.9,1842.7,11.6363]
[1743435168111,0.05,1842.9,1842.7,7.96974]
[1743435168608,4.80649885,1842.8,1842.4,0.68473465]
[1743435168773,5.42694,1842.7,1842.4,0.68473465]
[1743435168974,5.42729,1842.6,1842.4,0.68473465]
[1743435169185,10.8546,1842.6,1842.5,5.968]
[1743435169505,17.86949885,1842.6,1842.5,5.968]
[1743435170417,17.86949885,1842.6,1841.8,37.27544]
[1743435170418,5.42917,1841.9,1841.8,31.296]
[1743435170628,5.46250183,1841.9,1841.8,31.296]
[1743435170776,5.42917,1841.9,1841.8,37.264]
[1743435170977,5.43027,1841.6,1841.4,10.19]
[1743435171273,5.43027,1841.6,1841.5,5.968]
[1743435171901,5.43006,1841.6,1841.5,5.968]
[1743435172110,5.42987,1841.7,1841.5,5.968]
[1743435172408,5.43006,1841.6,1841.5,5.968]
[1743435172586,13.86039,1841.6,1841.4,5.968]
[1743435172772,8.43006,1841.6,1841.4,5.968]
[1743435172978,5.42979,1841.7,1841.4,6.5648]
[1743435173282,0.82403183,1841.8,1841.4,6.6190999]
[1743435173490,8.42964,1841.8,1841.4,12.80034]
[1743435173800,13.85934,1841.8,1841.4,12.80034]
[1743435173975,13.85934,1841.8,1841.4,7.3698]
[1743435174381,5.42979,1841.7,1841.4,7.3698]
[1743435174577,5.42979,1841.7,1841.4,6.773]
[1743435174807,0.787,1842.0,1841.4,6.773]
[1743435175106,10.85758,1842.1,1841.6,10.85978]
[1743435175304,3.0,1842.2,1841.5,5.98029]
[1743435175505,5.42928,1841.9,1841.6,0.598029]
[1743435175809,5.42862,1842.1,1841.7,5.48393259]
[1743435176109,8.42867,1842.1,1841.7,5.42964]
[1743435176309,5.42888,1842.0,1841.6,6.028009]
[1743435176703,5.42888,1842.0,1841.6,6.028059]
[1743435176907,5.42888,1842.0,1841.7,0.6028059]
[1743435177279,5.42888,1842.0,1841.6,0.598029]
[1743435177609,5.42961,1841.8,1841.4,6.23563]
[1743435177805,10.85936,1841.8,1841.5,5.968]
[1743435178980,5.42977,1841.7,1841.5,5.968]
[1743435179276,5.43006,1841.6,1841.5,5.968]
[1743435179497,5.42977,1841.7,1841.5,5.968]
[1743435179697,6.25752,1841.9,1841.5,11.39824]
[1743435179900,6.2575,1841.9,1841.5,7.107824]
[1743435180111,11.68695,1841.9,1841.5,12.537944]
[1743435180288,0.8283,1841.9,1841.5,7.107824]
[1743435180609,10.85946,1841.8,1841.5,7.107824]
[1743435180809,5.42973,1841.8,1841.5,7.107824]
[1743435181024,10.85798,1842.0,1841.6,6.1408224]
[1743435181180,10.85678,1842.2,1841.8,5.42936]
[1743435181380,0.7998,1842.4,1841.7,5.97966]
[1743435181381,5.42874,1842.1,1841.7,5.97966]
[1743435181641,0.03333183,1842.3,1841.8,0.05428737]
[1743435181787,4.1744592,1842.6,1841.8,0.05428737]
[1743435181788,6.65546044,1842.6,1842.0,0.8011]
[1743435181991,10.85449,1842.6,1842.2,5.42814]
[1743435182290,5.42742,1842.5,1842.2,1.682468]
[1743435182490,5.46049183,1842.6,1842.2,7.110688]
[1743435182700,10.88780183,1842.6,1842.2,7.110688]
[1743435182880,5.42758,1842.5,1842.2,1.682468]
[1743435183081,5.42781,1842.4,1842.1,5.968]
[1743435183532,10.85516,1842.5,1842.1,11.39647]
[1743435183714,5.42758,1842.5,1842.1,11.39647]
[1743435183907,5.46046183,1842.6,1842.1,11.39645]
[1743435183908,5.46049183,1842.6,1842.1,11.39645]
[1743435184219,0.44576698,1842.6,1842.1,5.968]
[1743435184404,5.42829,1842.2,1842.1,5.968]
[1743435184607,5.42829,1842.2,1842.0,31.308]
[1743435184608,5.42858,1842.1,1842.0,31.308]
[1743435184804,8.46191183,1842.1,1842.0,37.276]
[1743435185020,8.46191183,1842.1,1842.0,5.968]
[1743435185325,5.42803,1842.3,1842.0,5.968]
[1743435185612,5.42803,1842.3,1842.1,0.5968]
[1743435185613,5.42829,1842.2,1842.1,0.5968]
[1743435185784,5.46162183,1842.2,1842.0,5.968]
[1743435186293,5.42858,1842.1,1842.0,5.968]
[1743435186498,0.03333183,1842.2,1842.0,5.968]
[1743435186699,13.85649,1842.3,1842.0,5.968]
[1743435187019,5.4283,1842.2,1842.0,5.968]
[1743435187317,5.4283,1842.2,1842.1,5.967]
[1743435187318,5.46162183,1842.2,1842.1,5.967]
[1743435187517,5.42906,1842.0,1841.6,5.42995]
[1743435187722,5.42906,1842.0,1841.9,5.967]
[1743435187897,5.42924,1841.9,1841.5,11.63719]
[1743435188101,5.42924,1841.9,1841.6,11.39705]
[1743435188297,3.0,1842.2,1841.8,5.97942]
[1743435188508,8.42838,1842.2,1841.8,5.97942]
[1743435188807,5.42898,1842.0,1841.7,5.42974]
[1743435189012,5.42898,1842.0,1841.6,16.82691]
[1743435189200,5.42868,1842.1,1841.7,7.16645393]
[1743435189395,5.42833,1842.2,1841.7,7.112161]
[1743435189603,5.42879,1842.1,1841.7,7.112161]
[1743435189823,5.42879,1842.1,1841.5,2.545319]
[1743435189824,5.42917,1842.0,1841.5,7.975449]
[1743435189996,10.85805,1842.0,1841.6,5.967]
[1743435190322,3.0,1842.1,1841.7,5.42947]
[1743435190524,8.4287,1842.1,1841.7,10.85912]
[1743435190819,10.8571,1842.2,1841.8,5.42931]
[1743435191045,5.4287,1842.1,1841.7,5.9797]
[1743435191323,10.85745,1842.1,1841.7,7.77231]
[1743435191687,5.4289,1842.0,1841.7,7.77231]
[1743435191903,10.85795,1842.0,1841.7,0.55]
[1743435192098,5.4289,1842.0,1841.7,5.97971]
[1743435192303,5.4286,1842.1,1841.7,11.40931]
[1743435192504,0.7684,1842.4,1841.9,0.55]
[1743435192703,5.42713,1842.6,1842.2,5.42805]
[1743435192922,5.42741,1842.5,1842.3,5.966]
[1743435193140,11.475313,1842.6,1842.3,5.966]
[1743435193293,6.047913,1842.6,1842.3,5.966]
[1743435193497,5.46046183,1842.6,1842.3,5.966]
[1743435193719,10.8554,1842.5,1842.3,5.966]
[1743435193907,5.4277,1842.4,1842.3,5.966]
[1743435194223,9.4784576,1842.4,1842.3,5.966]
[1743435194429,9.4784576,1842.4,1842.1,5.966]
[1743435194430,5.42845,1842.2,1842.1,5.966]
[1743435194613,5.46178183,1842.2,1842.1,5.966]
[1743435195220,5.42845,1842.2,1842.1,5.966]
[1743435195926,5.42805,1842.3,1842.1,5.966]
[1743435196099,5.46138183,1842.3,1842.1,5.966]
[1743435196300,17.87301577,1842.4,1842.1,5.966]
[1743435196501,5.42806,1842.3,1842.1,5.966]
[1743435196718,8.42783,1842.4,1842.1,5.966]
[1743435196911,5.42804,1842.3,1842.1,5.966]
[1743435197101,5.42802,1842.3,1842.1,5.966]
[1743435197303,5.42748,1842.5,1842.2,5.42816]
[1743435197524,5.42748,1842.5,1842.1,7.105477]
[1743435197729,10.85512,1842.5,1842.1,12.533957]
[1743435198025,5.42771,1842.4,1842.1,7.105477]
[1743435198237,5.46145183,1842.3,1842.1,5.966]
[1743435198414,5.42771,1842.4,1842.1,11.39457]
[1743435198613,8.42722,1842.6,1842.1,11.39454]
[1743435198818,13.88792183,1842.6,1842.2,5.42818]
[1743435199021,3.0,1842.6,1842.1,11.39456]
[1743435199222,5.4281,1842.3,1842.1,5.966]
[1743435199422,10.88966183,1842.3,1842.1,5.966]
[1743435199627,10.85628,1842.3,1842.1,5.966]
[1743435199823,5.42829,1842.2,1842.1,5.966]
[1743435200129,10.85628,1842.3,1842.1,5.966]
[1743435200332,5.42829,1842.2,1842.1,5.966]
[1743435200709,5.42829,1842.2,1842.1,5.965]
[1743435200906,8.42829,1842.2,1842.1,5.965]
[1743435202734,5.42829,1842.2,1842.1,5.965]
[1743435202906,5.4281,1842.3,1842.1,6.5615]
[1743435203102,13.8556,1842.4,1842.1,5.965]
[1743435203338,5.42717,1842.6,1842.1,5.965]
[1743435203555,5.42717,1842.6,1842.2,6.26137]
[1743435203737,5.42717,1842.6,1842.2,11.68952]
[1743435203932,10.85448,1842.6,1842.2,6.26137]
[1743435204106,10.85448,1842.6,1842.2,8.02686]
[1743435204507,3.0,1842.6,1842.3,10.85585]
[1743435204711,3.0,1842.6,1842.2,2.59879]
[1743435204712,0.03333183,1842.8,1842.2,12.78879]
[1743435204911,0.05,1842.9,1842.7,5.42671]
[1743435205212,0.05,1842.9,1842.8,12.25968476]
[1743435205518,0.05,1842.9,1842.8,24.71405748]
[1743435206742,1e-05,1842.9,1842.8,24.71405748]
[1743435209545,1e-05,1842.9,1842.8,27.71405748]
[1743435209737,0.05,1843.9,1843.8,5.42358]
[1743435209935,0.05,1843.9,1843.8,11.43362223]
[1743435210148,0.05,1843.9,1843.8,13.69951522]
[1743435212217,0.05,1843.9,1843.8,13.69751522]
[1743435213533,0.05,1843.9,1843.8,7.72393522]
[1743435213936,0.05,1843.9,1843.8,13.75174348]
[1743435214246,0.05,1843.9,1843.8,13.69751522]
[1743435214765,0.05,1843.9,1843.8,13.69651522]
[1743435215322,0.05,1843.9,1843.8,24.68591522]
[1743435216043,0.05,1843.9,1843.8,12.75333522]
[1743435216225,0.05,1843.9,1843.8,16.149]
[1743435216552,0.05,1843.9,1843.8,21.57258]
[1743435216851,0.05,1843.9,1843.8,5.958]
[1743435217029,6.30094,1843.9,1843.8,5.958]
[1743435217234,6.30094,1843.9,1843.3,10.84997]
[1743435217235,5.4238,1843.8,1843.3,5.42495]
[1743435217433,10.84821,1843.7,1843.4,5.958]
[1743435217650,5.42427,1843.6,1843.4,5.958]
[1743435217845,5.42389,1843.7,1843.4,5.958]
[1743435218049,10.84797,1843.7,1843.4,5.958]
[1743435218249,5.42427,1843.6,1843.4,5.958]
[1743435219057,3.0,1843.6,1843.5,5.958]
[1743435219253,11.67678,1843.5,1843.2,31.283]
[1743435219460,0.8275,1843.5,1843.3,5.958]
[1743435219638,0.8275,1843.7,1843.5,5.42427]
[1743435219839,3.0,1843.8,1843.5,5.42427]
[1743435220157,0.8775,1843.9,1843.5,5.42427]
[1743435220359,0.8775,1843.9,1843.6,5.966477]
[1743435220878,0.05,1843.9,1843.7,5.97386]
[1743435221029,0.05,1843.9,1843.8,11.93058]
[1743435221229,0.05,1843.9,1843.8,12.73128]
[1743435224466,6.28208183,1844.6,1843.8,12.73128]
[1743435224467,0.8024,1844.7,1844.3,5.42197]
[1743435224670,1.31771441,1844.7,1844.4,5.957]
[1743435224900,0.83573183,1844.7,1844.4,5.957]
[1743435225099,5.42138,1844.6,1844.4,5.957]
[1743435225891,6.25666183,1844.7,1844.4,5.957]
[1743435226181,6.22343,1844.7,1844.4,11.37878]
[1743435226747,0.05,1844.9,1844.4,7.637085]
[1743435226975,5.47052,1844.9,1844.5,5.42135]
[1743435227349,0.05,1844.9,1844.7,5.42091]
[1743435227750,0.05,1844.9,1844.7,5.42083]
[1743435227991,0.05,1844.9,1844.8,5.42064]
[1743435228783,0.05,1844.9,1844.8,6.02483806]
[1743435229000,0.05,1844.9,1844.8,7.11520081]
[1743435229200,0.05,1844.9,1844.8,7.91590081]
[1743435229500,0.05,1844.9,1844.8,7.97009278]
[1743435229652,0.05,1844.9,1844.8,7.91590081]
[1743435230563,1e-05,1844.9,1844.8,21.10590081]
[1743435233152,0.05,1845.9,1845.8,5.4177]
[1743435233355,0.05,1845.9,1845.8,11.9207]
[1743435234581,0.05,1845.9,1845.8,16.781358]
[1743435236781,0.05,1845.9,1845.8,5.410658]
[1743435236989,0.05,1845.9,1845.8,5.95]
[1743435238365,5.46748,1845.9,1845.7,31.268]
[1743435238560,0.05,1845.9,1845.8,5.95]
[1743435238753,0.05,1845.9,1845.7,31.268]
[1743435238956,0.05,1845.9,1845.8,5.95]
[1743435239177,0.05,1845.9,1845.8,5.949]
[1743435239391,6.12859683,1845.9,1845.7,31.268]
[1743435239685,5.46753,1845.9,1845.8,5.949]
[1743435240262,0.05,1845.9,1845.8,5.949]
[1743435240485,0.05,1845.9,1845.8,11.3667]
[1743435240659,0.05,1845.9,1845.8,16.171957]
[1743435240859,0.05,1845.9,1845.8,10.754257]
[1743435241120,0.05,1845.9,1845.8,5.948]
[1743435241400,5.46745,1845.9,1845.7,31.268]
[1743435241603,6.1687,1845.8,1845.7,31.268]
[1743435241785,6.1687,1845.8,1845.7,37.216]
[1743435241964,0.05,1845.9,1845.7,37.216]
[1743435242169,12.5182776,1845.9,1845.8,5.948]
[1743435242465,10.06019663,1845.9,1845.8,5.948]
[1743435242671,10.89612846,1845.9,1845.8,5.948]
[1743435242870,9.27001,1845.9,1845.8,5.948]
[1743435243272,9.30334183,1845.9,1845.8,5.948]
[1743435243893,0.05,1845.9,1845.8,5.948]
[1743435244088,0.05,1845.9,1845.8,11.9157]
[1743435245290,0.05,1845.9,1845.8,6.498]
[1743435245589,0.05,1845.9,1845.7,31.268]
[1743435245887,8.4177,1845.8,1845.7,31.268]
[1743435246103,13.9340306,1845.8,1845.7,37.215]
[1743435246302,13.90069877,1845.8,1845.7,37.215]
[1743435247379,14.68749877,1845.8,1845.7,31.268]
[1743435247562,5.41891,1845.4,1845.0,10.83993]
[1743435247763,5.41891,1845.4,1845.1,5.946]
[1743435247764,10.83802,1845.4,1845.1,5.946]
[1743435247959,5.41863,1845.5,1845.1,12.502113]
[1743435248164,5.41832,1845.6,1845.3,5.41915]
[1743435248368,5.41832,1845.6,1845.2,5.96932]
[1743435248369,5.41861,1845.5,1845.2,5.96932]
[1743435248576,5.41917,1845.3,1845.1,7.082593]
[1743435248790,5.41917,1845.3,1845.1,5.946]
[1743435248995,5.41917,1845.3,1844.9,47.66864]
[1743435248996,0.8122,1845.3,1844.9,36.66614]
[1743435249194,6.23151,1845.3,1845.2,5.947]
[1743435250515,6.19515,1845.0,1844.9,31.246]
[1743435250681,10.2459076,1845.0,1844.9,37.192]
[1743435250884,14.81248536,1845.0,1844.9,5.946]
[1743435251118,3.7751,1844.9,1844.2,31.247]
[1743435251327,5.42211,1844.3,1844.2,31.247]
[1743435251617,6.22996183,1844.5,1844.2,37.193]
[1743435251819,5.42202,1844.4,1844.2,37.193]
[1743435252006,5.45535183,1844.4,1844.2,37.193]
[1743435252521,8.42211,1844.3,1844.2,37.194]
[1743435252689,9.25964183,1844.3,1844.2,5.947]
[1743435252884,9.22631,1844.3,1844.2,5.947]
[1743435253089,10.8476,1843.8,1843.5,31.251]
[1743435253413,11.60591,1843.8,1843.5,37.198]
[1743435253589,5.42403,1843.7,1843.5,41.460274]
[1743435253785,5.42415,1843.7,1843.5,41.460274]
[1743435254120,5.42417,1843.6,1843.5,37.198]
[1743435254338,5.42415,1843.7,1843.5,37.198]
[1743435254621,0.03333183,1843.7,1843.5,37.198]
[1743435254788,5.42417,1843.6,1843.5,37.198]
[1743435255911,6.18223,1843.8,1843.5,37.198]
[1743435256114,0.79183183,1843.8,1843.5,46.884518]
[1743435256313,5.42326,1844.0,1843.5,41.460258]
[1743435256314,3.82403183,1844.0,1843.5,41.460258]
[1743435256489,6.24714183,1844.0,1843.6,0.55]
[1743435256689,14.86437577,1843.9,1843.6,0.55]
[1743435256904,5.42362,1843.8,1843.6,5.2934488]
[1743435257105,9.44081577,1843.9,1843.6,5.2934488]
[1743435257511,9.4741476,1843.9,1843.6,5.2934488]
[1743435257725,5.42359,1843.8,1843.6,5.2934488]
[1743435258088,4.01742577,1843.9,1843.6,10.7175588]
[1743435258314,0.03333183,1844.0,1843.9,5.42328]
[1743435258612,6.23941,1844.3,1844.0,0.55]
[1743435258816,0.8173,1844.3,1844.1,5.948]
[1743435259017,5.82570251,1844.6,1844.1,7.140085]
[1743435259018,4.83472577,1844.6,1844.1,7.140085]
[1743435259206,5.45487183,1844.5,1844.1,12.562775]
[1743435259407,10.87663183,1844.5,1844.1,12.562775]
[1743435259613,5.42236,1844.3,1844.1,7.140085]
[1743435259917,9.43926577,1844.4,1844.1,7.140085]
[1743435260119,4.01742577,1844.8,1844.4,5.4216]
[1743435260343,0.7678,1844.9,1844.3,1.3529]
[1743435260344,6.22156183,1844.9,1844.3,1.3529]
[1743435260493,5.42077,1844.8,1844.4,5.42179]
[1743435260820,9.43876577,1844.6,1844.2,0.7140085]
[1743435261125,6.17482,1844.4,1844.3,5.948]
[1743435261823,4.01742577,1844.6,1844.3,5.948]
[1743435261994,0.03333183,1844.5,1844.3,5.948]
[1743435262195,5.45487183,1844.5,1844.3,5.948]
[1743435262599,0.03333183,1844.5,1844.3,5.948]
[1743435262806,5.42154,1844.5,1844.3,5.948]
[1743435262989,5.45487183,1844.5,1844.3,5.948]
[1743435263188,5.42181,1844.4,1844.3,5.948]
[1743435263392,9.43923577,1844.4,1844.3,5.948]
[1743435263592,10.92864653,1844.4,1844.3,5.948]
[1743435263789,9.4725676,1844.4,1844.3,5.948]
[1743435264026,0.7669,1844.3,1843.7,1.88095588]
[1743435264224,5.42269,1844.1,1843.8,5.948]
[1743435264429,5.45649183,1844.0,1843.8,5.948]
[1743435264740,3.0,1844.2,1843.8,11.37157]
[1743435264895,8.42241,1844.2,1843.9,1.137157]
[1743435265290,8.42241,1844.2,1843.9,6.560307]
[1743435265291,3.03333183,1844.2,1843.9,6.560307]
[1743435265532,3.0,1844.2,1843.9,6.560307]
[1743435266098,8.42242,1844.2,1843.9,1.137157]
[1743435266427,8.42242,1844.2,1843.8,5.948]
[1743435266428,5.42299,1844.0,1843.8,5.948]
[1743435266601,9.44025577,1844.1,1843.8,5.948]
[1743435266602,3.0,1844.2,1843.9,5.42311]
[1743435266804,3.0,1844.5,1844.1,5.42268]
[1743435267025,8.42161,1844.5,1844.2,5.97235]
[1743435267218,8.42161,1844.5,1844.3,5.947]
[1743435267438,5.42181,1844.4,1844.3,5.947]
[1743435267629,8.42161,1844.5,1844.3,5.947]
[1743435268009,9.4725676,1844.4,1844.3,5.947]
[1743435268328,8.42161,1844.5,1844.3,5.947]
[1743435268548,8.45494183,1844.5,1844.3,5.947]
[1743435268719,8.42154,1844.5,1844.3,5.947]
[1743435269025,13.84328,1844.5,1844.3,5.947]
[1743435269222,8.42154,1844.5,1844.3,5.947]
[1743435269722,13.84327,1844.5,1844.3,5.947]
[1743435269939,5.45514183,1844.4,1844.3,5.947]
[1743435270226,5.42181,1844.4,1844.3,5.947]
[1743435270648,5.45514183,1844.4,1844.3,5.947]
[1743435270944,5.42181,1844.4,1844.3,5.947]
[1743435271151,5.42251,1844.2,1843.9,0.55]
[1743435271318,5.42251,1844.2,1844.0,5.947]
[1743435271639,5.42191,1844.4,1844.0,16.84689476]
[1743435271799,5.45524183,1844.4,1844.0,16.79267]
[1743435271998,5.45515183,1844.4,1844.1,5.42245]
[1743435272215,5.42182,1844.4,1844.0,11.36998]
[1743435272419,5.45515183,1844.4,1844.1,1.686998]
[1743435272619,5.42222,1844.3,1844.1,1.686998]
[1743435272821,5.42182,1844.4,1844.1,7.109658]
[1743435273034,8.42153,1844.5,1844.1,12.58640858]
[1743435273204,8.42153,1844.5,1844.2,5.42237]
[1743435273395,3.0,1844.5,1844.2,12.1785198]
[1743435273602,5.42036,1844.9,1844.3,0.60421948]
[1743435273603,5.42068,1844.8,1844.3,0.60421948]